[Event "Titled Tuesday Blitz July 25 Early 2023"]
[White "Putri, Regita Desyari"]
[Black "FREDERICKtheMATE"]
[WhiteFideId "7109083"]
[WhiteElo "2213"]
[BlackElo "2398"]
[Result "1-0"]
[Round "6"]
[TimeControl "180+2"]
[Date "2023.07.25"]
[WhiteClock "0:00:07"]
[BlackClock "0:00:17"]
[Board "187"]

1. e4 {[%clk 0:02:58]}  c5 {[%clk 0:03:00]} 2. Nf3 {[%clk 0:02:58]}  g6 {[%clk 0:02:59]} 3. d4 {[%clk 0:02:58]}  cxd4 {[%clk 0:03:00]} 4. Nxd4 {[%clk 0:02:58]}  Nc6 {[%clk 0:02:59]} 5. c4 {[%clk 0:02:58]}  Nf6 {[%clk 0:02:59]} 6. Nc3 {[%clk 0:02:58]}  Nxd4 {[%clk 0:03:00]} 7. Qxd4 {[%clk 0:02:58]}  d6 {[%clk 0:03:00]} 8. Be2 {[%clk 0:02:57]}  Bg7 {[%clk 0:03:00]} 9. Be3 {[%clk 0:02:58]}  O-O {[%clk 0:02:59]} 10. Qd2 {[%clk 0:02:58]}  Be6 {[%clk 0:02:56]} 11. O-O {[%clk 0:02:56]}  Qa5 {[%clk 0:02:48]} 12. Rac1 {[%clk 0:02:51]}  Rfc8 {[%clk 0:02:46]} 13. b3 {[%clk 0:02:51]}  a6 {[%clk 0:02:45]} 14. Rfd1 {[%clk 0:02:40]}  Nd7 {[%clk 0:02:38]} 15. f3 {[%clk 0:01:58]}  b5 {[%clk 0:02:30]} 16. Nd5 {[%clk 0:01:57]}  Qxd2 {[%clk 0:02:29]} 17. Bxd2 {[%clk 0:01:55]}  Bxd5 {[%clk 0:02:27]} 18. cxd5 {[%clk 0:01:55]}  Bb2 {[%clk 0:02:21]} 19. Rxc8+ {[%clk 0:01:27]}  Rxc8 {[%clk 0:02:22]} 20. Bd3 {[%clk 0:01:27]}  Ne5 {[%clk 0:02:10]} 21. Bb1 {[%clk 0:01:27]}  Bc3 {[%clk 0:02:04]} 22. Rc1 {[%clk 0:01:06]}  Bd4+ {[%clk 0:02:02]} 23. Kf1 {[%clk 0:01:05]}  Rxc1+ {[%clk 0:02:03]} 24. Bxc1 {[%clk 0:01:06]}  f6 {[%clk 0:01:53]} 25. Ke2 {[%clk 0:01:06]}  Kf7 {[%clk 0:01:47]} 26. h3 {[%clk 0:01:06]}  g5 {[%clk 0:01:42]} 27. g3 {[%clk 0:01:03]}  Ng6 {[%clk 0:01:40]} 28. f4 {[%clk 0:01:02]}  gxf4 {[%clk 0:01:39]} 29. gxf4 {[%clk 0:01:02]}  Bg1 {[%clk 0:01:35]} 30. Bd3 {[%clk 0:00:48]}  Ke8 {[%clk 0:01:22]} 31. Kf3 {[%clk 0:00:44]}  Bh2 {[%clk 0:01:17]} 32. a4 {[%clk 0:00:34]}  bxa4 {[%clk 0:01:11]} 33. bxa4 {[%clk 0:00:34]}  a5 {[%clk 0:01:11]} 34. Bd2 {[%clk 0:00:35]}  Kd7 {[%clk 0:01:03]} 35. Bb5+ {[%clk 0:00:33]}  Kc8 {[%clk 0:01:02]} 36. f5 {[%clk 0:00:23]}  Nf8 {[%clk 0:00:48]} 37. Bxa5 {[%clk 0:00:22]}  Bg1 {[%clk 0:00:44]} 38. Kg4 {[%clk 0:00:21]}  Be3 {[%clk 0:00:41]} 39. Kf3 {[%clk 0:00:13]}  Bg5 {[%clk 0:00:36]} 40. Kg4 {[%clk 0:00:11]}  Be3 {[%clk 0:00:30]} 41. h4 {[%clk 0:00:11]}  Nd7 {[%clk 0:00:27]} 42. Bxd7+ {[%clk 0:00:11]}  Kxd7 {[%clk 0:00:27]} 43. Kh5 {[%clk 0:00:12]}  Kc8 {[%clk 0:00:25]} 44. Kg4 {[%clk 0:00:07]}  Kd7 {[%clk 0:00:25]} 45. h5 {[%clk 0:00:07]}  Kc8 {[%clk 0:00:23]} 46. Kf3 {[%clk 0:00:08]}  Bd4 {[%clk 0:00:20]} 47. Ke2 {[%clk 0:00:08]}  Be5 {[%clk 0:00:19]} 48. Kd3 {[%clk 0:00:09]}  Kb7 {[%clk 0:00:19]} 49. Kc4 {[%clk 0:00:10]}  Ka6 {[%clk 0:00:20]} 50. Bd8 {[%clk 0:00:10]}  Bb2 {[%clk 0:00:19]} 51. Bxe7 {[%clk 0:00:10]}  Be5 {[%clk 0:00:20]} 52. Kb4 {[%clk 0:00:07]}  Kb6 {[%clk 0:00:20]} 53. a5+ {[%clk 0:00:07]}  Ka6 {[%clk 0:00:20]} 54. Ka4 {[%clk 0:00:08]}  h6 {[%clk 0:00:19]} 55. Bf8 {[%clk 0:00:07]}  Bf4 {[%clk 0:00:18]} 56. Bg7 {[%clk 0:00:04]}  Bg5 {[%clk 0:00:18]} 57. Bf8 {[%clk 0:00:03]}  Bf4 {[%clk 0:00:18]} 58. Be7 {[%clk 0:00:04]}  Be5 {[%clk 0:00:19]} 59. Kb4 {[%clk 0:00:05]}  Ka7 {[%clk 0:00:17]} 60. Kb5 {[%clk 0:00:06]}  Kb7 {[%clk 0:00:17]} 61. a6+ {[%clk 0:00:06]}  Ka7 {[%clk 0:00:18]} 62. Kc6 {[%clk 0:00:06]}  Kxa6 {[%clk 0:00:19]} 63. Bxd6 {[%clk 0:00:07]}  Bd4 {[%clk 0:00:19]} 64. Be7 {[%clk 0:00:07]}  Ka7 {[%clk 0:00:20]} 65. d6 {[%clk 0:00:08]}  Bb6 {[%clk 0:00:20]} 66. d7 {[%clk 0:00:08]}  Ba5 {[%clk 0:00:21]} 67. Bxf6 {[%clk 0:00:09]}  Kb8 {[%clk 0:00:21]} 68. Bg7 {[%clk 0:00:09]}  Bd8 {[%clk 0:00:20]} 69. Bxh6 {[%clk 0:00:09]}  Bf6 {[%clk 0:00:20]} 70. Bf4+ {[%clk 0:00:10]}  Ka7 {[%clk 0:00:20]} 71. e5 {[%clk 0:00:09]}  Bd8 {[%clk 0:00:18]} 72. e6 {[%clk 0:00:09]}  Bf6 {[%clk 0:00:18]} 73. h6 {[%clk 0:00:09]}  Be7 {[%clk 0:00:17]} 74. h7 {[%clk 0:00:10]}  Bf6 {[%clk 0:00:17]} 75. d8=Q {[%clk 0:00:09]}  Bxd8 {[%clk 0:00:17]} 76. h8=Q {[%clk 0:00:10]}  Bc7 {[%clk 0:00:17]} 77. Qa1+ {[%clk 0:00:09]}  Kb8 {[%clk 0:00:15]} 78. Qb2+ {[%clk 0:00:08]}  Kc8 {[%clk 0:00:16]} 79. Qb7+ {[%clk 0:00:07]}  Kd8 {[%clk 0:00:16]} 80. Qxc7+ {[%clk 0:00:08]}  Ke8 {[%clk 0:00:17]} 81. Qd7+ {[%clk 0:00:06]}  Kf8 {[%clk 0:00:17]} 82. Qf7# {[%clk 0:00:07]} 1-0


[Site "https://www.chess.com"]

[Event "Titled Tuesday Blitz July 25 Early 2023"]
[White "Gyulamiryan-koryun"]
[Black "Stork, Oliver"]
[BlackFideId "12955728"]
[WhiteElo "2059"]
[BlackElo "2389"]
[Result "0-1"]
[Round "6"]
[TimeControl "180+2"]
[Date "2023.07.25"]
[WhiteClock "0:00:00"]
[BlackClock "0:00:10"]
[Board "188"]

1. d4 {[%clk 0:02:59]}  Nf6 {[%clk 0:02:59]} 2. c4 {[%clk 0:02:59]}  e6 {[%clk 0:02:59]} 3. Nf3 {[%clk 0:02:59]}  d5 {[%clk 0:02:59]} 4. g3 {[%clk 0:02:59]}  dxc4 {[%clk 0:02:59]} 5. Bg2 {[%clk 0:02:59]}  Be7 {[%clk 0:02:59]} 6. O-O {[%clk 0:02:58]}  O-O {[%clk 0:02:59]} 7. Qc2 {[%clk 0:02:50]}  b5 {[%clk 0:02:09]} 8. a4 {[%clk 0:02:48]}  b4 {[%clk 0:01:32]} 9. Nfd2 {[%clk 0:02:42]}  Nd5 {[%clk 0:01:17]} 10. Nxc4 {[%clk 0:02:37]}  Bb7 {[%clk 0:01:15]} 11. Na5 {[%clk 0:02:27]}  Ba6 {[%clk 0:01:11]} 12. Bf4 {[%clk 0:02:14]}  c5 {[%clk 0:01:05]} 13. Bxb8 {[%clk 0:01:56]}  Qxa5 {[%clk 0:01:01]} 14. Be5 {[%clk 0:01:42]}  c4 {[%clk 0:01:00]} 15. Nd2 {[%clk 0:01:39]}  Rfc8 {[%clk 0:00:55]} 16. Ne4 {[%clk 0:01:30]}  c3 {[%clk 0:00:46]} 17. b3 {[%clk 0:01:26]}  Rd8 {[%clk 0:00:36]} 18. g4 {[%clk 0:00:52]}  Rac8 {[%clk 0:00:34]} 19. Rfd1 {[%clk 0:00:50]}  Qb6 {[%clk 0:00:22]} 20. a5 {[%clk 0:00:47]}  Qb5 {[%clk 0:00:20]} 21. Bf3 {[%clk 0:00:46]}  f6 {[%clk 0:00:19]} 22. Bg3 {[%clk 0:00:45]}  Qe8 {[%clk 0:00:20]} 23. h4 {[%clk 0:00:44]}  Qg6 {[%clk 0:00:18]} 24. h5 {[%clk 0:00:43]}  Qf7 {[%clk 0:00:19]} 25. h6 {[%clk 0:00:36]}  gxh6 {[%clk 0:00:18]} 26. Kg2 {[%clk 0:00:35]}  f5 {[%clk 0:00:19]} 27. Nc5 {[%clk 0:00:28]}  Bxc5 {[%clk 0:00:16]} 28. dxc5 {[%clk 0:00:27]}  f4 {[%clk 0:00:16]} 29. Bh4 {[%clk 0:00:24]}  Rf8 {[%clk 0:00:14]} 30. Rd4 {[%clk 0:00:09]}  Rxc5 {[%clk 0:00:15]} 31. Rad1 {[%clk 0:00:08]}  Bb7 {[%clk 0:00:14]} 32. g5 {[%clk 0:00:05]}  Qg7 {[%clk 0:00:13]} 33. Kh2 {[%clk 0:00:04]}  hxg5 {[%clk 0:00:13]} 34. Rg1 {[%clk 0:00:04]}  h6 {[%clk 0:00:13]} 35. e3 {[%clk 0:00:03]}  fxe3 {[%clk 0:00:13]} 36. Bxd5 {[%clk 0:00:02]}  Rxd5 {[%clk 0:00:13]} 37. Rxb4 {[%clk 0:00:02]}  Qe5+ {[%clk 0:00:13]} 38. Bg3 {[%clk 0:00:02]}  exf2 {[%clk 0:00:12]} 39. Bxe5 {[%clk 0:00:01]}  fxg1=Q+ {[%clk 0:00:12]} 40. Kxg1 {[%clk 0:00:02]}  Rxe5 {[%clk 0:00:12]} 41. Rxb7 {[%clk 0:00:02]}  Re1+ {[%clk 0:00:12]} 42. Kg2 {[%clk 0:00:01]}  Re3 {[%clk 0:00:12]} 43. Qc1 {[%clk 0:00:01]}  Rd3 {[%clk 0:00:11]} 44. Qc2 {[%clk 0:00:01]}  Rd2+ {[%clk 0:00:11]} 45. Qxd2 {[%clk 0:00:02]}  cxd2 {[%clk 0:00:12]} 46. Rd7 {[%clk 0:00:02]}  Rb8 {[%clk 0:00:12]} 47. Rxd2 {[%clk 0:00:02]}  Rxb3 {[%clk 0:00:12]} 48. Rd7 {[%clk 0:00:02]}  Rb2+ {[%clk 0:00:11]} 49. Kg3 {[%clk 0:00:02]}  h5 {[%clk 0:00:11]} 50. Rxa7 {[%clk 0:00:02]}  Rb3+ {[%clk 0:00:12]} 51. Kg2 {[%clk 0:00:02]}  g4 {[%clk 0:00:11]} 52. Re7 {[%clk 0:00:02]}  Ra3 {[%clk 0:00:11]} 53. Rxe6 {[%clk 0:00:02]}  Rxa5 {[%clk 0:00:11]} 54. Rf6 {[%clk 0:00:01]}  Kg7 {[%clk 0:00:11]} 55. Rc6 {[%clk 0:00:01]}  Ra3 {[%clk 0:00:11]} 56. Kh2 {[%clk 0:00:01]}  h4 {[%clk 0:00:11]} 57. Kg2 {[%clk 0:00:01]}  h3+ {[%clk 0:00:11]} 58. Kh2 {[%clk 0:00:02]}  Rf3 {[%clk 0:00:09]} 59. Rc4 {[%clk 0:00:02]}  Rf2+ {[%clk 0:00:07]} 60. Kh1 {[%clk 0:00:01]}  Rg2 {[%clk 0:00:07]} 61. Re4 {[%clk 0:00:01]}  Kg6 {[%clk 0:00:08]} 62. Re6+ {[%clk 0:00:01]}  Kf5 {[%clk 0:00:08]} 63. Rf6+ {[%clk 0:00:01]}  Ke4 {[%clk 0:00:09]} 64. Rf4+ {[%clk 0:00:01]}  Ke3 {[%clk 0:00:09]} 65. Rf3+ {[%clk 0:00:02]}  Ke2 {[%clk 0:00:09]} 66. Re3+ {[%clk 0:00:02]}  Kf2 {[%clk 0:00:09]} 67. Re2+ {[%clk 0:00:02]}  Kf1 {[%clk 0:00:10]} 68. Rc2 {[%clk 0:00:02]}  Rg1+ {[%clk 0:00:07]} 69. Kh2 {[%clk 0:00:01]}  g3+ {[%clk 0:00:08]} 70. Kxh3 {[%clk 0:00:01]}  g2 {[%clk 0:00:09]} 71. Rc3 {[%clk 0:00:01]}  Rh1+ {[%clk 0:00:09]} 72. Kg4 {[%clk 0:00:00]}  g1=Q+ {[%clk 0:00:10]} 0-1


[Site "https://www.chess.com"]

[Event "Titled Tuesday Blitz July 25 Early 2023"]
[White "Orlov, Oleg"]
[Black "Vemparala, Nikash"]
[WhiteFideId "4166612"]
[BlackFideId "30960967"]
[WhiteElo "2520"]
[BlackElo "2246"]
[Result "0-1"]
[Round "6"]
[TimeControl "180+2"]
[Date "2023.07.25"]
[WhiteClock "0:00:18"]
[BlackClock "0:00:24"]
[Board "191"]

1. e4 {[%clk 0:02:54]}  e5 {[%clk 0:02:59]} 2. Nf3 {[%clk 0:02:48]}  Nc6 {[%clk 0:02:59]} 3. Bb5 {[%clk 0:02:42]}  Nf6 {[%clk 0:02:55]} 4. O-O {[%clk 0:02:38]}  Nxe4 {[%clk 0:02:51]} 5. Re1 {[%clk 0:02:31]}  Nd6 {[%clk 0:02:43]} 6. Nxe5 {[%clk 0:02:18]}  Be7 {[%clk 0:02:41]} 7. Bf1 {[%clk 0:01:58]}  Nxe5 {[%clk 0:02:39]} 8. Rxe5 {[%clk 0:01:59]}  O-O {[%clk 0:02:40]} 9. d4 {[%clk 0:01:57]}  Bf6 {[%clk 0:02:38]} 10. Re1 {[%clk 0:01:50]}  Re8 {[%clk 0:02:39]} 11. c3 {[%clk 0:01:47]}  Rxe1 {[%clk 0:02:38]} 12. Qxe1 {[%clk 0:01:48]}  Ne8 {[%clk 0:02:38]} 13. Nd2 {[%clk 0:01:44]}  d5 {[%clk 0:02:37]} 14. Nf3 {[%clk 0:01:44]}  Nd6 {[%clk 0:02:35]} 15. Bf4 {[%clk 0:01:37]}  Bf5 {[%clk 0:02:34]} 16. Be5 {[%clk 0:01:32]}  Ne4 {[%clk 0:02:26]} 17. Bd3 {[%clk 0:01:10]}  Bg6 {[%clk 0:02:22]} 18. Qe3 {[%clk 0:01:08]}  Bxe5 {[%clk 0:02:14]} 19. Nxe5 {[%clk 0:01:09]}  Nd6 {[%clk 0:01:50]} 20. Nxg6 {[%clk 0:01:03]}  hxg6 {[%clk 0:01:51]} 21. Re1 {[%clk 0:01:03]}  Qf6 {[%clk 0:01:49]} 22. Qg3 {[%clk 0:00:44]}  Re8 {[%clk 0:01:42]} 23. Re5 {[%clk 0:00:39]}  Re6 {[%clk 0:01:25]} 24. h3 {[%clk 0:00:38]}  c6 {[%clk 0:01:17]} 25. Kh2 {[%clk 0:00:15]}  Kh7 {[%clk 0:01:06]} 26. Rxe6 {[%clk 0:00:03]}  Qxe6 {[%clk 0:01:05]} 27. Qh4+ {[%clk 0:00:03]}  Kg8 {[%clk 0:01:02]} 28. Qg3 {[%clk 0:00:04]}  Ne8 {[%clk 0:01:01]} 29. Qf4 {[%clk 0:00:03]}  Qd6 {[%clk 0:01:00]} 30. Qxd6 {[%clk 0:00:04]}  Nxd6 {[%clk 0:01:00]} 31. f3 {[%clk 0:00:04]}  Kf8 {[%clk 0:01:00]} 32. Kg3 {[%clk 0:00:05]}  Ke7 {[%clk 0:01:01]} 33. Kf4 {[%clk 0:00:05]}  Ke6 {[%clk 0:01:02]} 34. g4 {[%clk 0:00:06]}  Nc8 {[%clk 0:00:51]} 35. h4 {[%clk 0:00:06]}  Nb6 {[%clk 0:00:51]} 36. b3 {[%clk 0:00:07]}  Nd7 {[%clk 0:00:50]} 37. a4 {[%clk 0:00:07]}  c5 {[%clk 0:00:51]} 38. h5 {[%clk 0:00:06]}  gxh5 {[%clk 0:00:49]} 39. gxh5 {[%clk 0:00:07]}  Nf6 {[%clk 0:00:40]} 40. Kg5 {[%clk 0:00:05]}  cxd4 {[%clk 0:00:38]} 41. cxd4 {[%clk 0:00:06]}  a5 {[%clk 0:00:29]} 42. Bf5+ {[%clk 0:00:05]}  Ke7 {[%clk 0:00:26]} 43. h6 {[%clk 0:00:06]}  gxh6+ {[%clk 0:00:25]} 44. Kxh6 {[%clk 0:00:07]}  Ne8 {[%clk 0:00:20]} 45. Kg5 {[%clk 0:00:07]}  Nd6 {[%clk 0:00:20]} 46. Bh3 {[%clk 0:00:07]}  b5 {[%clk 0:00:16]} 47. Kf4 {[%clk 0:00:05]}  bxa4 {[%clk 0:00:16]} 48. bxa4 {[%clk 0:00:06]}  Nc4 {[%clk 0:00:17]} 49. Bf1 {[%clk 0:00:06]}  Nb2 {[%clk 0:00:17]} 50. Bb5 {[%clk 0:00:07]}  Nc4 {[%clk 0:00:16]} 51. Kf5 {[%clk 0:00:07]}  Nd6+ {[%clk 0:00:16]} 52. Ke5 {[%clk 0:00:03]}  Nxb5 {[%clk 0:00:16]} 53. Kxd5 {[%clk 0:00:02]}  Nc3+ {[%clk 0:00:16]} 54. Kc4 {[%clk 0:00:02]}  Nxa4 {[%clk 0:00:16]} 55. Kb5 {[%clk 0:00:03]}  Nc3+ {[%clk 0:00:17]} 56. Kxa5 {[%clk 0:00:04]}  Ne2 {[%clk 0:00:17]} 57. Kb4 {[%clk 0:00:05]}  Nxd4 {[%clk 0:00:17]} 58. f4 {[%clk 0:00:05]}  Ne6 {[%clk 0:00:18]} 59. f5 {[%clk 0:00:06]}  Ng7 {[%clk 0:00:18]} 60. f6+ {[%clk 0:00:07]}  Kxf6 {[%clk 0:00:18]} 61. Kc5 {[%clk 0:00:08]}  Kg6 {[%clk 0:00:19]} 62. Kd4 {[%clk 0:00:08]}  Nf5+ {[%clk 0:00:20]} 63. Ke4 {[%clk 0:00:09]}  f6 {[%clk 0:00:21]} 64. Kf3 {[%clk 0:00:10]}  Ng7 {[%clk 0:00:22]} 65. Ke2 {[%clk 0:00:10]}  Kg5 {[%clk 0:00:23]} 66. Kf2 {[%clk 0:00:11]}  f5 {[%clk 0:00:24]} 67. Kf3 {[%clk 0:00:12]}  f4 {[%clk 0:00:25]} 68. Kf2 {[%clk 0:00:13]}  Nf5 {[%clk 0:00:25]} 69. Kg1 {[%clk 0:00:14]}  Kg4 {[%clk 0:00:26]} 70. Kf1 {[%clk 0:00:15]}  Kg3 {[%clk 0:00:26]} 71. Kg1 {[%clk 0:00:15]}  f3 {[%clk 0:00:27]} 72. Kh1 {[%clk 0:00:16]}  Ne3 {[%clk 0:00:25]} 73. Kg1 {[%clk 0:00:17]}  f2+ {[%clk 0:00:25]} 74. Kh1 {[%clk 0:00:18]}  f1=R# {[%clk 0:00:24]} 0-1


[Site "https://www.chess.com"]

[Event "Titled Tuesday Blitz July 25 Early 2023"]
[White "Gulamali, Kazim"]
[Black "Tqebuchava, Zurab"]
[WhiteFideId "2024764"]
[BlackFideId "13601113"]
[WhiteElo "2494"]
[BlackElo "2204"]
[Result "0-1"]
[Round "6"]
[TimeControl "180+2"]
[Date "2023.07.25"]
[WhiteClock "0:00:00"]
[BlackClock "0:00:03"]
[Board "193"]

1. e4 {[%clk 0:02:48]}  d6 {[%clk 0:03:00]} 2. d4 {[%clk 0:02:47]}  g6 {[%clk 0:03:00]} 3. Nc3 {[%clk 0:02:48]}  Bg7 {[%clk 0:03:01]} 4. Be3 {[%clk 0:02:48]}  c6 {[%clk 0:03:01]} 5. Be2 {[%clk 0:02:48]}  Nd7 {[%clk 0:03:01]} 6. f4 {[%clk 0:02:47]}  b5 {[%clk 0:03:00]} 7. e5 {[%clk 0:02:45]}  b4 {[%clk 0:02:59]} 8. Ne4 {[%clk 0:02:44]}  d5 {[%clk 0:02:56]} 9. Ng5 {[%clk 0:02:31]}  e6 {[%clk 0:02:55]} 10. f5 {[%clk 0:02:16]}  Bh6 {[%clk 0:01:57]} 11. f6 {[%clk 0:02:14]}  Bxg5 {[%clk 0:01:51]} 12. Bxg5 {[%clk 0:02:15]}  c5 {[%clk 0:01:43]} 13. c3 {[%clk 0:02:04]}  bxc3 {[%clk 0:01:42]} 14. bxc3 {[%clk 0:02:05]}  cxd4 {[%clk 0:01:41]} 15. cxd4 {[%clk 0:01:35]}  Rb8 {[%clk 0:01:40]} 16. Nf3 {[%clk 0:01:06]}  Qb6 {[%clk 0:01:26]} 17. O-O {[%clk 0:00:56]}  h5 {[%clk 0:01:17]} 18. Qd2 {[%clk 0:00:44]}  Qb4 {[%clk 0:00:47]} 19. Qe3 {[%clk 0:00:37]}  Nb6 {[%clk 0:00:41]} 20. Rab1 {[%clk 0:00:32]}  Qf8 {[%clk 0:00:40]} 21. Bb5+ {[%clk 0:00:29]}  Bd7 {[%clk 0:00:39]} 22. Bxd7+ {[%clk 0:00:23]}  Kxd7 {[%clk 0:00:39]} 23. Qb3 {[%clk 0:00:14]}  Kc8 {[%clk 0:00:29]} 24. Rfc1+ {[%clk 0:00:13]}  Kb7 {[%clk 0:00:29]} 25. a4 {[%clk 0:00:13]}  Ka8 {[%clk 0:00:24]} 26. Qb5 {[%clk 0:00:12]}  Qe8 {[%clk 0:00:19]} 27. a5 {[%clk 0:00:11]}  Qxb5 {[%clk 0:00:18]} 28. Rxb5 {[%clk 0:00:12]}  Nc4 {[%clk 0:00:17]} 29. Rcb1 {[%clk 0:00:13]}  Rxb5 {[%clk 0:00:16]} 30. Rxb5 {[%clk 0:00:05]}  Nh6 {[%clk 0:00:16]} 31. Bxh6 {[%clk 0:00:04]}  Rxh6 {[%clk 0:00:15]} 32. Ng5 {[%clk 0:00:05]}  Rh8 {[%clk 0:00:10]} 33. Nxf7 {[%clk 0:00:05]}  Rf8 {[%clk 0:00:10]} 34. Ng5 {[%clk 0:00:05]}  a6 {[%clk 0:00:10]} 35. Rc5 {[%clk 0:00:05]}  Kb7 {[%clk 0:00:09]} 36. Nxe6 {[%clk 0:00:05]}  Re8 {[%clk 0:00:04]} 37. f7 {[%clk 0:00:00]}  Rxe6 {[%clk 0:00:03]} 0-1


[Site "https://www.chess.com"]

[Event "Titled Tuesday Blitz July 25 Early 2023"]
[White "Hoffmann, Asa"]
[Black "Sailer, Mike"]
[WhiteFideId "2001470"]
[BlackFideId "2012901"]
[WhiteElo "2395"]
[BlackElo "2165"]
[Result "1-0"]
[Round "6"]
[TimeControl "180+2"]
[Date "2023.07.25"]
[WhiteClock "0:01:12"]
[BlackClock "0:00:00"]
[Board "197"]

1. d4 {[%clk 0:02:59]}  d5 {[%clk 0:02:59]} 2. Bg5 {[%clk 0:02:55]}  h6 {[%clk 0:02:52]} 3. Bh4 {[%clk 0:02:55]}  c6 {[%clk 0:02:49]} 4. e3 {[%clk 0:02:55]}  Qb6 {[%clk 0:02:48]} 5. b3 {[%clk 0:02:54]}  Bf5 {[%clk 0:02:47]} 6. Bd3 {[%clk 0:02:53]}  Bxd3 {[%clk 0:02:44]} 7. Qxd3 {[%clk 0:02:53]}  e6 {[%clk 0:02:44]} 8. Nd2 {[%clk 0:02:53]}  Nd7 {[%clk 0:02:42]} 9. f4 {[%clk 0:02:53]}  Ngf6 {[%clk 0:02:41]} 10. Ngf3 {[%clk 0:02:52]}  Be7 {[%clk 0:02:38]} 11. O-O {[%clk 0:02:49]}  O-O-O {[%clk 0:02:20]} 12. Ne5 {[%clk 0:02:48]}  Nxe5 {[%clk 0:02:19]} 13. fxe5 {[%clk 0:02:48]}  Ng8 {[%clk 0:01:57]} 14. Bxe7 {[%clk 0:02:47]}  Nxe7 {[%clk 0:01:57]} 15. Rxf7 {[%clk 0:02:46]}  Nf5 {[%clk 0:01:50]} 16. g4 {[%clk 0:02:46]}  Nh4 {[%clk 0:01:44]} 17. Rxg7 {[%clk 0:02:42]}  Rdg8 {[%clk 0:01:38]} 18. Rxg8+ {[%clk 0:02:38]}  Rxg8 {[%clk 0:01:39]} 19. h3 {[%clk 0:02:38]}  h5 {[%clk 0:01:31]} 20. Qh7 {[%clk 0:02:33]}  Qd8 {[%clk 0:01:31]} 21. Qf7 {[%clk 0:02:25]}  Rg6 {[%clk 0:01:11]} 22. Rf1 {[%clk 0:02:09]}  hxg4 {[%clk 0:01:11]} 23. hxg4 {[%clk 0:01:58]}  Rxg4+ {[%clk 0:01:11]} 24. Kf2 {[%clk 0:01:58]}  Rg2+ {[%clk 0:00:31]} 25. Ke1 {[%clk 0:01:57]}  Qg8 {[%clk 0:00:26]} 26. Qf8+ {[%clk 0:01:38]}  Qxf8 {[%clk 0:00:21]} 27. Rxf8+ {[%clk 0:01:36]}  Kc7 {[%clk 0:00:18]} 28. Rf7+ {[%clk 0:01:32]}  Kb6 {[%clk 0:00:18]} 29. Re7 {[%clk 0:01:30]}  Rg6 {[%clk 0:00:13]} 30. c4 {[%clk 0:01:29]}  Nf5 {[%clk 0:00:10]} 31. Rf7 {[%clk 0:01:19]}  Nxe3 {[%clk 0:00:09]} 32. Ke2 {[%clk 0:01:16]}  Nf5 {[%clk 0:00:09]} 33. Rf6 {[%clk 0:01:15]}  Nxd4+ {[%clk 0:00:09]} 34. Kd3 {[%clk 0:01:14]}  Rxf6 {[%clk 0:00:10]} 35. exf6 {[%clk 0:01:14]}  Nf3 {[%clk 0:00:00]} 36. Nxf3 {[%clk 0:01:12]} 1-0


[Site "https://www.chess.com"]

[Event "Titled Tuesday Blitz July 25 Early 2023"]
[White "Vifleemskaia, Svetlana"]
[Black "djjohnnywoo"]
[WhiteFideId "4129490"]
[WhiteElo "2338"]
[BlackElo "2136"]
[Result "0-1"]
[Round "6"]
[TimeControl "180+2"]
[Date "2023.07.25"]
[WhiteClock "0:00:35"]
[BlackClock "0:00:13"]
[Board "199"]

1. d4 {[%clk 0:03:00]}  g6 {[%clk 0:02:53]} 2. c4 {[%clk 0:03:00]}  Bg7 {[%clk 0:02:51]} 3. e4 {[%clk 0:03:00]}  d6 {[%clk 0:02:49]} 4. Nc3 {[%clk 0:03:00]}  c6 {[%clk 0:02:47]} 5. h4 {[%clk 0:02:59]}  h5 {[%clk 0:02:46]} 6. Nge2 {[%clk 0:02:56]}  Nf6 {[%clk 0:02:46]} 7. Ng3 {[%clk 0:02:56]}  Bg4 {[%clk 0:02:43]} 8. Be2 {[%clk 0:02:54]}  Na6 {[%clk 0:02:39]} 9. a3 {[%clk 0:02:53]}  Nc7 {[%clk 0:02:37]} 10. f3 {[%clk 0:02:52]}  Bd7 {[%clk 0:02:31]} 11. Bg5 {[%clk 0:02:51]}  O-O {[%clk 0:02:25]} 12. Qd2 {[%clk 0:02:51]}  Kh7 {[%clk 0:02:23]} 13. Nf1 {[%clk 0:02:47]}  Ne6 {[%clk 0:02:01]} 14. Be3 {[%clk 0:02:30]}  c5 {[%clk 0:01:55]} 15. d5 {[%clk 0:02:29]}  Nd4 {[%clk 0:01:54]} 16. Bxd4 {[%clk 0:02:27]}  cxd4 {[%clk 0:01:51]} 17. Qxd4 {[%clk 0:02:27]}  Ng4 {[%clk 0:01:35]} 18. Qd1 {[%clk 0:02:20]}  Qb6 {[%clk 0:01:08]} 19. fxg4 {[%clk 0:02:11]}  Qxb2 {[%clk 0:01:07]} 20. Rc1 {[%clk 0:01:41]}  Bxc3+ {[%clk 0:01:04]} 21. Kf2 {[%clk 0:01:41]}  Bd4+ {[%clk 0:00:59]} 22. Kg3 {[%clk 0:01:35]}  Qxa3+ {[%clk 0:00:54]} 23. Qd3 {[%clk 0:01:29]}  Be5+ {[%clk 0:00:50]} 24. Kf2 {[%clk 0:01:27]}  Qxc1 {[%clk 0:00:50]} 25. gxh5 {[%clk 0:01:25]}  Qf4+ {[%clk 0:00:40]} 26. Bf3 {[%clk 0:01:22]}  gxh5 {[%clk 0:00:40]} 27. g3 {[%clk 0:01:17]}  Qf6 {[%clk 0:00:39]} 28. Ne3 {[%clk 0:01:11]}  Bg4 {[%clk 0:00:29]} 29. Nf5 {[%clk 0:01:09]}  Bxf5 {[%clk 0:00:25]} 30. exf5 {[%clk 0:01:08]}  Rg8 {[%clk 0:00:26]} 31. Rg1 {[%clk 0:01:06]}  Rac8 {[%clk 0:00:19]} 32. Rg2 {[%clk 0:01:04]}  Bd4+ {[%clk 0:00:18]} 33. Kf1 {[%clk 0:00:59]}  b5 {[%clk 0:00:19]} 34. Rd2 {[%clk 0:00:49]}  Rxc4 {[%clk 0:00:19]} 35. Rg2 {[%clk 0:00:44]}  Rc1+ {[%clk 0:00:19]} 36. Ke2 {[%clk 0:00:41]}  Qe5+ {[%clk 0:00:18]} 37. Be4 {[%clk 0:00:39]}  f6 {[%clk 0:00:17]} 38. Qf3 {[%clk 0:00:36]}  Rg4 {[%clk 0:00:14]} 39. Kd3 {[%clk 0:00:35]}  Rc3+ {[%clk 0:00:13]} 40. Ke2 {[%clk 0:00:35]}  Rxf3 {[%clk 0:00:14]} 41. Kxf3 {[%clk 0:00:35]}  Qxe4# {[%clk 0:00:13]} 0-1


[Site "https://www.chess.com"]